[Event "24th Hoogeschool Zeeland 2022"]
[Site "Vlissingen"]
[Date "2022.08.06"]
[Round "1.13"]
[White "Verheij, Dana"]
[Black "Van Delft, Merijn"]
[Result "0-1"]
[ECO "B22"]
[WhiteElo "1850"]
[BlackElo "2383"]
[Annotator "TA"]
[PlyCount "56"]
[EventDate "2022.08.05"]
[EventType "swiss"]
[EventCountry "NED"]
[SourceTitle "playchess.com"]
[Source "ChessBase"]
[SourceQuality "1"]
[TimeControl "40/5400+30:1800+30"]

{[%evp 12,56,15,14,35,-22,6,-2,21,6,12,-36,-31,-23,-38,-26,0,-105,-36,-38,0,-60,-37,-13,0,-58,-27,-56,-32,-27,-15,-62,-8,-72,-79,-106,-92,-133,-138,-159,-155,-299,-295,-785,-764,-998,-993]} 1. e4 {[%emt 0:00:49]} c5 {[%emt 0:00:18]} 2. c3 {[%emt 0:00:14]} d5 {[%emt 0:00:46]} 3. exd5 {[%emt 0:00:12]} Qxd5 {[%emt 0:00:07]} 4. d4 {[%emt 0:00:23]} Nf6 {[%emt 0:00:47]} 5. Nf3 {[%emt 0:00:15]} Nc6 {[%emt 0:00:15]} 6. dxc5 {[%emt 0:01:03]} Qxd1+ {[%emt 0:01:05]} 7. Kxd1 {[%emt 0:00:03]} Bf5 {[%emt 0:01:32] B22: Sicilian: 2 c3.} 8. b4 {[%emt 0:05:41] [#]} ({White should try} 8. Bb5 $14) 8... Ng4 $146 {[%emt 0:23:08][%mdl 1024] Black has compensation.} (8... g6 $5 {[%cal Rf6e4]}) ({Predecessor:} 8... Bxb1 9. Rxb1 Ne4 10. Kc2 Nxf2 11. Rg1 e6 12. h3 Be7 13. Be3 Ne4 14. Bd3 Nf6 {0-1 (42) Simkunaite,G (1850)-Stasans,A (2039) Palanga 2019}) 9. Ke1 {[%emt 0:05:27]} O-O-O {[%emt 0:02:54] The position is equal.} 10. Be2 {[%emt 0:19:25]} g6 {[%emt 0:03:01][%cal Oc6b4] And now ...Nxb4! would win.} 11. h3 {[%emt 0:04:50]} (11. Ng5 $11 Nge5 12. b5) 11... Nge5 $15 {[%emt 0:01:05]} 12. Nxe5 {[%emt 0:02:27]} Nxe5 {[%emt 0:00:15]} 13. Be3 {[%emt 0:01:38]} Nd3+ {[%emt 0:02:52]} 14. Kf1 {[%emt 0:02:20] [#]} (14. Bxd3 $11 Rxd3 15. Ke2) 14... Bg7 {[%emt 0:00:25]} (14... Nxb4 $1 $17 {[%mdl 512] ...Nc2 is the strong threat.} 15. cxb4 Bg7) 15. a3 {[%emt 0:00:17]} a6 {[%emt 0:03:29]} 16. Bf3 {[%emt 0:08:00]} (16. g3 $11) 16... Ne5 {[%emt 0:03:06]} 17. Be2 {[%emt 0:03:02]} Nd3 {[%emt 0:00:48]} 18. Bf3 {[%emt 0:02:57]} (18. g3 $11) 18... Kc7 {[%emt 0:03:03]} 19. g4 {[%emt 0:06:06]} Bd7 {[%emt 0:12:16]} 20. Ra2 {[%emt 0:06:02]} f5 {[%emt 0:06:57] White must now prevent ...f4.} 21. Bg5 {[%emt 0:07:17]} (21. Rd2 $11 {feels stronger.}) 21... Bb5 {[%emt 0:01:30]} ({Black should play} 21... Bf6 $15 22. Bxf6 exf6) 22. Kg2 {[%emt 0:01:05]} (22. Be2 $1 $11) 22... Rd7 {[%emt 0:04:35]} 23. a4 {[%emt 0:06:11]} Bc4 {[%emt 0:01:07][%cal Bb5c4,Bc4e6,Be6d5][%mdl 32]} 24. Ra3 {[%emt 0:00:50]} e5 {[%emt 0:04:15] Black is more active.} 25. Nd2 {[%emt 0:00:22] [#]} Be6 {[%emt 0:02:48]} 26. Be2 {[%emt 0:03:00] [#]} (26. b5 $17 h6 27. c6) 26... h6 $1 $19 {[%emt 0:01:43]} 27. Be7 {[%emt 0:09:43]} (27. Be3 f4 28. Ne4 fxe3 29. fxe3) 27... Nf4+ {[%emt 0:00:22][%mdl 64] Discovered Attack, Double Attack} 28. Kf3 {[%emt 0:00:09]} Bd5+ {[%emt 0:00:36] Weighted Error Value: White=0.61/Black=0.19 (very precise)} 0-1

[Event "24th Hoogeschool Zeeland 2022"]
[Site "Vlissingen"]
[Date "2022.08.06"]
[Round "1.14"]
[White "Pham, Khoi"]
[Black "Welten, Hans"]
[Result "1-0"]
[ECO "B76"]
[WhiteElo "2317"]
[BlackElo "1844"]
[Annotator "RC"]
[PlyCount "79"]
[EventDate "2022.08.05"]
[EventType "swiss"]
[EventCountry "NED"]
[SourceTitle "playchess.com"]
[Source "ChessBase"]
[SourceQuality "1"]
[TimeControl "40/5400+30:1800+30"]

1. e4 {[%emt 0:00:04]} c5 {[%emt 0:00:14]} 2. Nf3 {[%emt 0:00:06]} d6 {[%emt 0:00:12]} 3. d4 {[%emt 0:00:06]} cxd4 {[%emt 0:00:05]} 4. Nxd4 {[%emt 0:00:03]} Nf6 {[%emt 0:00:19]} 5. Nc3 {[%emt 0:00:07]} g6 {[%emt 0:00:12]} 6. Be3 {[%emt 0:00:16]} Bg7 {[%emt 0:00:07]} 7. f3 {[%emt 0:00:07]} Nc6 {[%emt 0:00:16]} 8. Qd2 {[%emt 0:00:31]} O-O {[%emt 0:00:09]} 9. O-O-O {[%emt 0:00:05]} d5 {[%emt 0:00:45]} 10. exd5 {[%emt 0:00:37]} Nxd5 {[%emt 0:00:21]} 11. Nxc6 {[%emt 0:00:08]} bxc6 {[%emt 0:00:08]} 12. Bd4 {[%emt 0:00:05]} e5 {[%emt 0:01:51]} 13. Bc5 {[%emt 0:01:10]} Be6 {[%emt 0:00:46]} 14. Ne4 {[%emt 0:00:34]} Re8 {[%emt 0:06:41]} 15. h4 {[%emt 0:01:05]} h5 {[%emt 0:05:36]} 16. g4 {[%emt 0:22:09]} Nf4 {[%emt 0:05:26]} 17. Qe1 {[%emt 0:04:26]} Qb8 {[%emt 0:02:36]} 18. gxh5 {[%emt 0:09:26]} Nxh5 {[%emt 0:00:47]} 19. b3 {[%emt 0:03:51]} a5 {[%emt 0:01:38]} 20. Nd6 {[%emt 0:16:32]} Rd8 {[%emt 0:03:39]} 21. Bc4 {[%emt 0:00:53]} Bxc4 {[%emt 0:07:04]} 22. Nxc4 {[%emt 0:01:46]} Rxd1+ {[%emt 0:18:14]} 23. Qxd1 {[%emt 0:00:06]} Qb5 {[%emt 0:00:21]} 24. Ba3 {[%emt 0:05:10]} a4 {[%emt 0:00:31]} 25. Bb2 {[%emt 0:01:48]} axb3 {[%emt 0:06:12]} 26. axb3 {[%emt 0:00:06]} Nf4 {[%emt 0:13:15]} 27. Re1 {[%emt 0:07:13]} Bh6 {[%emt 0:10:29]} 28. Rxe5 {[%emt 0:05:23]} Nd3+ {[%emt 0:00:28]} 29. Kb1 {[%emt 0:00:04]} Nxe5 {[%emt 0:00:19]} 30. Nxe5 {[%emt 0:00:17]} Qa5 {[%emt 0:03:20]} 31. c4 {[%emt 0:00:29]} Qa2+ {[%emt 0:01:49]} 32. Kc2 {[%emt 0:00:05]} Rb8 {[%emt 0:00:36]} 33. Qd3 {[%emt 0:01:05]} Bg7 {[%emt 0:04:13]} 34. f4 {[%emt 0:00:17]} Bf6 {[%emt 0:01:27]} 35. Qe3 {[%emt 0:10:44]} Rd8 {[%emt 0:02:17]} 36. h5 {[%emt 0:03:55]} gxh5 {[%emt 0:01:01]} 37. Qg1+ {[%emt 0:00:26]} Kh7 {[%emt 0:01:34]} 38. Qh2 {[%emt 0:00:33]} h4 {[%emt 0:01:04]} 39. Qe2 {[%emt 0:01:37]} Bxe5 {[%emt 0:03:14]} 40. Qxe5 {[%emt 0:02:16]} 1-0

[Event "24th Hoogeschool Zeeland 2022"]
[Site "Vlissingen"]
[Date "2022.08.06"]
[Round "1.15"]
[White "Niewenhuis, Ruud"]
[Black "Royal, Shreyas"]
[Result "0-1"]
[ECO "C56"]
[WhiteElo "1841"]
[BlackElo "2353"]
[Annotator "TA"]
[PlyCount "82"]
[EventDate "2022.08.05"]
[EventType "swiss"]
[EventCountry "NED"]
[SourceTitle "playchess.com"]
[Source "ChessBase"]
[SourceQuality "1"]
[TimeControl "40/5400+30:1800+30"]

{[%evp 16,82,-20,-50,-49,-48,-36,-36,-51,-58,-30,-93,-88,-89,-37,-36,-11,-12,0,-43,-39,-38,-20,-56,-55,-57,-59,-130,-136,-132,-130,-124,-58,-106,-102,-106,-106,-105,-105,-106,-106,-98,-102,-106,-72,-76,0,0,0,0,-8,-8,0,-5118,-5118,-5118,-1134,-29975,-29976,-29976,-29977,-29977,-29978,-29978,-29979,-29979,-29979,-29979,-11368]} 1. e4 {[%emt 0:00:04]} e5 {[%emt 0:00:06]} 2. Nf3 {[%emt 0:00:12]} Nc6 {[%emt 0:00:07]} 3. d4 {[%emt 0:00:04]} exd4 {[%emt 0:00:05]} 4. Bc4 {[%emt 0:00:06]} Bc5 {[%emt 0:00:16]} 5. c3 {[%emt 0:00:07]} Nf6 {[%emt 0:00:12]} 6. O-O {[%emt 0:09:12]} Nxe4 {[%emt 0:04:19]} 7. cxd4 {[%emt 0:03:43]} d5 {[%emt 0:00:11]} 8. dxc5 {[%emt 0:02:52]} dxc4 {[%emt 0:00:09]} 9. Qxd8+ {[%emt 0:02:20]} Kxd8 {[%emt 0:08:08] C56: Two Knights: 4 d4 exd4 5 0-0 Nxe4.} 10. Be3 {[%emt 0:07:17]} Be6 {[%emt 0:07:33]} 11. Nd4 {[%emt 0:13:05]} Nxd4 {[%emt 0:03:29] Black is slightly better.} 12. Bxd4 {[%emt 0:00:27] [#]} Ke7 $146 {[%emt 0:01:58]} ({Predecessor:} 12... Kd7 13. Re1 Nf6 14. Na3 Kc6 15. Rac1 Rad8 16. Be3 Ng4 17. Bf4 Rd4 18. g3 h6 {½-½ (33) Engelbert,C (2240)-Neffe,A Germany 1994}) 13. Bxg7 {[%emt 0:05:07]} (13. c6 $11) 13... Rhg8 $17 {[%emt 0:00:14]} ({Don't take} 13... Nxc5 14. Bxh8 Rxh8 15. Nc3 $14) 14. Be5 {[%emt 0:01:10]} Rac8 {[%emt 0:06:13]} (14... c6 $17 15. Nc3 Nxc5) 15. c6 $15 {[%emt 0:11:58]} bxc6 {[%emt 0:00:35]} 16. Re1 {[%emt 0:04:49]} Nc5 {[%emt 0:01:57]} 17. Re2 {[%emt 0:05:10]} Nd3 {[%emt 0:00:37]} 18. Bg3 {[%emt 0:00:47]} Rb8 {[%emt 0:04:07]} 19. Bxc7 {[%emt 0:04:51]} Rxb2 {[%emt 0:00:29]} 20. Rxb2 {[%emt 0:00:39]} Nxb2 {[%emt 0:00:07]} 21. Be5 {[%emt 0:03:19]} ({White should play} 21. Nc3 $15) 21... Nd3 $17 {[%emt 0:00:27]} 22. Bg3 {[%emt 0:01:03]} f5 $1 {[%emt 0:03:36] Hoping for ...f4. 0x0.00168162b7a8dp-1022s more active pieces. The white rooks are badly placed.} 23. Nc3 {[%emt 0:00:58]} Bd5 {[%emt 0:00:31]} ({Better is} 23... f4 $17 24. Bh4+ Kd6) 24. Ne2 {[%emt 0:01:27]} (24. Kf1 $1 $15) 24... Ke6 {[%emt 0:07:40][%cal Of5f4]} 25. f3 {[%emt 0:06:48]} f4 $1 {[%emt 0:04:26]} 26. Nxf4+ {[%emt 0:00:10]} Nxf4 {[%emt 0:00:06]} 27. Bxf4 {[%emt 0:00:20]} Bxf3 $1 {[%emt 0:00:05][%mdl 4096] Endgame KRB-KRB} 28. Kf2 {[%emt 0:02:30]} Bxg2 {[%emt 0:08:27]} 29. Rg1 {[%emt 0:00:12] [#]} Kf5 $1 {[%emt 0:00:28]} 30. Be3 {[%emt 0:00:35] [#]} (30. Bc1 Bd5) 30... Ke4 {[%emt 0:03:47]} ({Black should try} 30... Bd5 $1 $17 {aiming for ...Rxg1.} 31. Rxg8 Bxg8) 31. Bc1 $1 $11 {[%emt 0:03:41]} Kd3 {[%emt 0:00:43] White must now prevent ...Bd5.} 32. Rxg2 {[%emt 0:00:12]} Rxg2+ {[%emt 0:00:07]} 33. Kxg2 {[%emt 0:00:25] KB-KP} Ke2 {[%emt 0:03:44]} 34. Bb2 $2 {[%emt 0:05:28][%mdl 8192]} (34. Kg3 $11) 34... Kd2 $19 {[%emt 0:00:27]} 35. Bd4 {[%emt 0:00:30] [#]} a5 $1 {[%emt 0:02:05] ( -> ...c3)} (35... c3 $2 36. Bxa7 Ke2 37. Bb8 $18) 36. Kf2 {[%emt 0:00:52]} c3 {[%emt 0:00:47] Black mates.} 37. a4 {[%emt 0:01:48]} c2 {[%emt 0:00:30]} 38. Be3+ {[%emt 0:00:45]} Kd1 {[%emt 0:00:06]} 39. Kf3 {[%emt 0:00:24]} c1=Q {[%emt 0:00:05]} 40. Bxc1 {[%emt 0:00:11]} Kxc1 {[%emt 0:00:04]} 41. Ke3 {[%emt 0:30:04]} Kc2 {[%emt 0:30:14] Weighted Error Value: White=0.57/Black=0.12 (very precise)} (41... Kb2 $142 42. Kd4 Kb3 43. Kc5 Kxa4 44. Kxc6 Kb3 45. Kd6 a4 46. h3 a3 47. Ke6 a2 48. Kd6 a1=Q 49. Ke6 Kc4 50. h4 Qe1+ 51. Kf5 Kd5 52. Kg5 Qe5+ 53. Kh6 Ke6 54. Kxh7 Kf7 55. Kh6 Qg7+ 56. Kh5 Qg6#) 0-1

[Event "24th Hoogeschool Zeeland 2022"]
[Site "Vlissingen"]
[Date "2022.08.06"]
[Round "1.16"]
[White "Seul, Georg"]
[Black "Boeren, Jurriaan"]
[Result "1-0"]
[ECO "C24"]
[WhiteElo "2367"]
[BlackElo "1845"]
[Annotator "TA"]
[PlyCount "59"]
[EventDate "2022.08.05"]
[EventType "swiss"]
[EventCountry "NED"]
[SourceTitle "playchess.com"]
[Source "ChessBase"]
[SourceQuality "1"]
[TimeControl "40/5400+30:1800+30"]

{[%evp 11,59,14,34,23,26,8,0,0,0,-12,15,8,18,16,76,64,77,72,108,89,66,60,109,100,131,89,153,171,168,138,286,281,354,359,357,321,306,234,236,216,337,334,462,447,581,415,431,441,1180,1013]} 1. e4 {[%emt 0:00:03]} e5 {[%emt 0:00:05]} 2. Bc4 {[%emt 0:00:19]} Nf6 {[%emt 0:00:10]} 3. d3 {[%emt 0:00:05]} c6 {[%emt 0:00:14]} 4. Nf3 {[%emt 0:00:25]} Be7 {[%emt 0:00:37]} 5. O-O {[%emt 0:00:54]} d6 {[%emt 0:00:11]} 6. Nbd2 {[%emt 0:04:18]} O-O {[%emt 0:01:14]} 7. Re1 {[%emt 0:02:44] C24: Bishop's Opening: 2...Nf6.} a5 {[%emt 0:03:00]} 8. a3 {[%emt 0:02:27]} Nbd7 {[%emt 0:01:06]} 9. Ba2 {[%emt 0:00:53] The position is equal.} Nc5 {[%emt 0:04:43] [#]} 10. h3 $146 {[%emt 0:16:22]} ({Predecessor:} 10. Nf1 Be6 11. Bb1 g6 12. h3 Re8 13. Ng5 Bd7 14. c3 d5 15. exd5 Nxd5 16. Nf3 {½-½ (24) Kadric,D (2543)-Nikcevic,N (2428) Biograd 2018}) 10... Be6 {[%emt 0:03:32]} 11. Bb1 {[%emt 0:02:15]} h6 {[%emt 0:02:32]} 12. c3 {[%emt 0:00:51]} Nh7 {[%emt 0:08:58]} (12... a4 $11 {keeps the balance.}) 13. d4 $16 {[%emt 0:01:02]} Nd7 {[%emt 0:01:14]} 14. Nf1 {[%emt 0:01:42] [#] d5 is the strong threat.} exd4 {[%emt 0:21:59]} 15. cxd4 {[%emt 0:00:49] Threatens to win with d5.} Nb6 {[%emt 0:04:02] Against d5} 16. Ng3 {[%emt 0:02:13]} Ng5 {[%emt 0:01:38]} (16... Re8 $14) 17. Nh2 {[%emt 0:16:21] Hoping for Qc2.} a4 {[%emt 0:07:38]} 18. Bc2 {[%emt 0:01:45]} c5 {[%emt 0:02:22]} (18... Nh7 $142) 19. d5 {[%emt 0:00:28]} Bd7 {[%emt 0:00:19]} 20. Ng4 {[%emt 0:44:34]} Nc4 {[%emt 0:06:32] Black cannot hold the game after this.} (20... Re8 $16) 21. f4 $18 {[%emt 0:00:00]} Nh7 {[%emt 0:00:17]} 22. Qd3 {[%emt 0:00:00]} Bxg4 {[%emt 0:03:33]} 23. e5 {[%emt 0:00:00][%csl Gc2][%cal Rd3h7] [#]} (23. Qxc4 Qa5 24. Be3 Bd7 $16) 23... g6 {[%emt 0:00:43][%cal Oc4b6]} 24. Qxc4 {[%emt 0:00:00]} Bh4 {[%emt 0:05:15]} 25. Re3 {[%emt 0:00:00]} (25. hxg4 Bxg3 26. Re3 Qh4 27. Rxg3 Qxg3 $17) 25... Bd7 {[%emt 0:01:56]} (25... b5 $142 26. Qxb5 Bc8) 26. e6 {[%emt 0:00:00]} (26. exd6 b5 27. Qe4 (27. Qxc5 $2 Rc8 $19) 27... f5 $15) 26... fxe6 {[%emt 0:02:26]} 27. dxe6 {[%emt 0:00:00][%cal Bd5e6,Be6e7][%mdl 32] aiming for e7+.} b5 {[%emt 0:01:40]} 28. Qd3 {[%emt 0:00:00]} Be8 {[%emt 0:00:11]} 29. f5 {[%emt 0:00:00]} g5 {[%emt 0:03:13]} (29... Qe7 $142 30. fxg6 Ng5) 30. e7 {[%emt 0:05:00] Weighted Error Value: White=0.16 (very precise) /Black=0.42} 1-0

[Event "24th Hoogeschool Zeeland 2022"]
[Site "Vlissingen"]
[Date "2022.08.06"]
[Round "1.17"]
[White "Timmermans, Adri"]
[Black "Sorbe, Stephane"]
[Result "0-1"]
[ECO "B12"]
[WhiteElo "1840"]
[BlackElo "2352"]
[Annotator "TA"]
[PlyCount "64"]
[EventDate "2022.08.05"]
[EventType "swiss"]
[EventCountry "NED"]
[SourceTitle "playchess.com"]
[Source "ChessBase"]
[SourceQuality "1"]
[TimeControl "40/5400+30:1800+30"]

{[%evp 9,64,-24,-18,-34,-20,-56,-57,-126,-99,-103,-83,-92,-76,-105,-110,-113,-122,-120,-86,-83,-84,-101,-43,-79,-78,-143,-158,-173,-127,-196,-200,-339,-347,-327,-332,-323,-331,-325,-195,-165,-200,-425,-373,-448,-441,-450,-340,-364,-285,-267,-245,-250,-3,-469,-462,-523,-505]} 1. e4 {[%emt 0:00:44]} c6 {[%emt 0:00:36]} 2. d4 {[%emt 0:00:25]} d5 {[%emt 0:00:10]} 3. f3 {[%emt 0:00:30]} e6 {[%emt 0:00:45]} 4. Bd3 {[%emt 0:02:37]} dxe4 {[%emt 0:07:09]} 5. fxe4 {[%emt 0:02:25]} Qxd4 {[%emt 0:01:48]} 6. Nf3 {[%emt 0:02:27] B12: Caro-Kann: Advance Variation.} Qb6 {[%emt 0:00:56]} 7. Nc3 {[%emt 0:02:28] [#]} Nd7 $146 {[%emt 0:04:27]} ({Predecessor:} 7... Bb4 8. Bd2 Nd7 9. a3 Bxc3 10. Bxc3 Qe3+ 11. Be2 Ngf6 12. e5 Ng4 13. Bd4 Qh6 {0-1 (44) Johansen,S (1832)-Rewitz,P (2289) Helsingor 2018}) 8. Rb1 {[%emt 0:11:24]} (8. e5 $15) 8... e5 {[%emt 0:10:09]} 9. Qe2 {[%emt 0:03:01]} h6 {[%emt 0:03:08]} 10. Bd2 {[%emt 0:00:59]} Ngf6 {[%emt 0:01:29]} 11. Na4 {[%emt 0:02:36]} Qc7 {[%emt 0:00:22]} 12. O-O {[%emt 0:02:03]} b5 {[%emt 0:11:08][%cal Bb7b5,Bb5b4][%mdl 32]} 13. Nc3 {[%emt 0:00:36]} Nc5 {[%emt 0:00:59]} 14. b4 {[%emt 0:17:20]} Nxd3 {[%emt 0:01:26]} 15. cxd3 {[%emt 0:00:30]} a5 {[%emt 0:04:12]} (15... Be6 $17 16. Rfc1 Rb8) 16. bxa5 {[%emt 0:03:42]} Rxa5 {[%emt 0:10:36]} 17. Qe1 {[%emt 0:09:20]} (17. Rfc1 $142 b4 18. Nd5 Nxd5 19. exd5 Rxd5 20. Qe4) 17... b4 $36 {[%emt 0:08:20][%mdl 2048] [#] And now ...Ba6 would win. Black is really pushing.} 18. Nd1 {[%emt 0:00:16]} c5 {[%emt 0:01:14]} ({And not} 18... Rxa2 19. Bxb4 c5 20. Bc3 $11) ({Black should try} 18... Ba6 $19 19. Nf2 c5) 19. Qg3 {[%emt 0:05:49]} (19. Rc1 $17 {keeps fighting.}) 19... Be6 {[%emt 0:05:46]} 20. Qxe5 {[%emt 0:08:28]} (20. Nb2 {is a better defense.}) 20... Bd6 $19 {[%emt 0:04:38][%cal Bf8d6,Bd6e5,Be5d4][%mdl 32]} ({Wrong is} 20... Qxe5 $2 21. Nxe5 Rxa2 22. Nb2 $19) 21. Qb2 {[%emt 0:00:16]} Rxa2 {[%emt 0:00:09]} 22. Qc1 {[%emt 0:00:12]} Ng4 {[%emt 0:00:38]} 23. h3 {[%emt 0:04:06]} Ne5 {[%emt 0:01:44]} 24. Nxe5 {[%emt 0:02:23]} Bxe5 {[%emt 0:00:06]} 25. Bf4 $2 {[%emt 0:03:35] [#]} (25. Be3) 25... Bd4+ {[%emt 0:00:33]} 26. Kh1 {[%emt 0:03:08]} Qd7 {[%emt 0:00:18]} 27. Rf3 {[%emt 0:03:09]} g5 {[%emt 0:07:27]} 28. Be3 {[%emt 0:01:27]} g4 {[%emt 0:00:08]} 29. hxg4 {[%emt 0:04:38]} Bxg4 {[%emt 0:00:17]} 30. Rf2 {[%emt 0:01:05]} Ra3 {[%emt 0:04:26]} ({Better is} 30... Rxf2 $19 31. Nxf2 Be6 32. Bxd4 Qxd4) 31. Qc4 $2 {[%emt 0:01:21][%mdl 8192]} (31. Bxd4 $11 Qxd4 32. Qf4) 31... Be6 {[%emt 0:01:10] A strong pair of Bishops.} 32. Qc1 {[%emt 0:00:22]} Rxd3 {[%emt 0:01:01] Weighted Error Value: White=0.60/Black=0.47} 0-1

[Event "24th Hoogeschool Zeeland 2022"]
[Site "Vlissingen"]
[Date "2022.08.06"]
[Round "1.18"]
[White "Klepke, Ricardo"]
[Black "Van Driel, Eric"]
[Result "1-0"]
[ECO "E00"]
[WhiteElo "2293"]
[BlackElo "1837"]
[Annotator "TA"]
[PlyCount "51"]
[EventDate "2022.08.05"]
[EventType "swiss"]
[EventCountry "NED"]
[SourceTitle "playchess.com"]
[Source "ChessBase"]
[SourceQuality "1"]
[TimeControl "40/5400+30:1800+30"]

{[%evp 9,51,36,69,71,65,48,54,56,70,55,69,67,83,54,54,54,89,55,55,55,55,46,92,93,134,67,66,66,66,69,85,95,102,85,371,385,371,378,330,317,326,296,29998,29999]} 1. d4 {[%emt 0:00:04]} Nf6 {[%emt 0:00:18]} 2. c4 {[%emt 0:00:10]} e6 {[%emt 0:00:16]} 3. g3 {[%emt 0:00:13]} Bb4+ {[%emt 0:01:48]} 4. Nd2 {[%emt 0:00:20]} Nc6 {[%emt 0:05:33]} 5. Ngf3 {[%emt 0:01:28]} Qe7 {[%emt 0:01:22]} 6. Bg2 {[%emt 0:01:13] E00: Catalan Bogo-Indian (3 g3 Bb4+).} O-O {[%emt 0:01:20]} 7. Qc2 {[%emt 0:05:48]} d6 {[%emt 0:02:16]} 8. O-O {[%emt 0:02:33] White is slightly better.} Bxd2 {[%emt 0:00:45]} 9. Bxd2 {[%emt 0:00:33]} e5 {[%emt 0:00:58]} 10. d5 {[%emt 0:00:44]} Nb8 {[%emt 0:02:01][%cal Bc6b8,Bb8a6,Ba6c5][%mdl 32] [#]} 11. Rac1 $146 {[%emt 0:12:37] White is more active.} ({Predecessor:} 11. e4 Nh5 12. Nh4 g6 13. b4 b6 14. Rac1 c5 15. bxc5 dxc5 16. Bc3 g5 17. Nf5 Bxf5 18. exf5 Qd6 19. Qe2 Ng7 20. Bxe5 Qd7 21. f6 Ne8 22. Be4 g4 23. Qe3 {1-0 (23) Suarez Garcia,C (2306)-Montoliu Cervero,F (2230) Salobrena 2012}) 11... a5 {[%emt 0:03:55]} 12. e4 {[%emt 0:09:13]} b6 {[%emt 0:03:32]} 13. b3 {[%emt 0:04:44]} Na6 {[%emt 0:06:36]} 14. Nh4 {[%emt 0:06:19]} Nc5 {[%emt 0:03:00]} 15. Bc3 {[%emt 0:02:51]} Ne8 {[%emt 0:15:40]} (15... Bd7 $14) 16. f4 $16 {[%emt 0:04:51]} f6 {[%emt 0:08:34]} 17. a3 {[%emt 0:03:27]} ({Better is} 17. Nf5 $16 Qd8 18. Ne3) 17... g5 $14 {[%emt 0:04:15]} 18. fxg5 {[%emt 0:06:16]} fxg5 {[%emt 0:00:10]} 19. Rxf8+ {[%emt 0:01:00]} Qxf8 {[%emt 0:01:01]} 20. Nf3 {[%emt 0:00:46]} Nf6 {[%emt 0:05:24]} 21. Rf1 {[%emt 0:07:10][%cal Of3e5] aiming for Nxe5!} ({Resist} 21. Nxg5 Qg7 $14) 21... Qg7 $2 {[%emt 0:02:09][%mdl 8192] [#] Loses the game.} (21... Ncxe4 $16 22. Bb2 Bd7 23. Nxe5 dxe5 24. Bxe4 Qc5+ 25. Kg2 Nxe4) 22. Nxe5 $1 $18 {[%emt 0:01:22][%mdl 512]} dxe5 {[%emt 0:00:10]} 23. Bxe5 {[%emt 0:00:04] This bishop pair is nice.} Ncd7 {[%emt 0:00:22]} 24. Qb2 {[%emt 0:02:31]} ({Not} 24. Bxc7 Ng4 $11) 24... Nxe5 {[%emt 0:00:39]} 25. Qxe5 {[%emt 0:00:07]} Ng4 $2 {[%emt 0:00:13] [#]} (25... Bd7 $18) 26. Qe8+ {[%emt 0:00:06] Weighted Error Value: White=0.08 (flawless) /Black=0.68} 1-0

[Event "24th Hoogeschool Zeeland 2022"]
[Site "Vlissingen"]
[Date "2022.08.06"]
[Round "1.19"]
[White "Kalma, Jildo"]
[Black "Grochal, Joey"]
[Result "0-1"]
[ECO "A47"]
[WhiteElo "1826"]
[BlackElo "2290"]
[Annotator "RC"]
[PlyCount "100"]
[EventDate "2022.08.05"]
[EventType "swiss"]
[EventCountry "NED"]
[SourceTitle "playchess.com"]
[Source "ChessBase"]
[SourceQuality "1"]
[TimeControl "40/5400+30:1800+30"]

1. d4 {[%emt 0:00:58]} Nf6 {[%emt 0:00:08]} 2. Nf3 {[%emt 0:00:09]} e6 {[%emt 0:00:08]} 3. e3 {[%emt 0:00:11]} b6 {[%emt 0:00:52]} 4. Bd3 {[%emt 0:02:23]} Bb7 {[%emt 0:00:14]} 5. Nbd2 {[%emt 0:00:15]} c5 {[%emt 0:02:26]} 6. O-O {[%emt 0:03:06]} Nc6 {[%emt 0:01:10]} 7. a3 {[%emt 0:00:39]} Qc7 {[%emt 0:02:09]} 8. b3 {[%emt 0:02:54]} d5 {[%emt 0:03:12]} 9. Bb2 {[%emt 0:01:28]} Bd6 {[%emt 0:04:36]} 10. Re1 {[%emt 0:01:34]} Rd8 {[%emt 0:04:23]} 11. Ra2 {[%emt 0:08:00]} e5 {[%emt 0:09:27]} 12. dxe5 {[%emt 0:02:35]} Nxe5 {[%emt 0:00:11]} 13. Nxe5 {[%emt 0:00:43]} Bxe5 {[%emt 0:00:05]} 14. Bb5+ {[%emt 0:00:51]} Nd7 {[%emt 0:00:09]} 15. Bxe5 {[%emt 0:00:53]} Qxe5 {[%emt 0:00:07]} 16. Qa1 {[%emt 0:00:26]} O-O {[%emt 0:03:46]} 17. Qxe5 {[%emt 0:05:50]} Nxe5 {[%emt 1:05:57]} 18. Be2 {[%emt 0:07:40]} Rfe8 {[%emt 0:00:00]} 19. Raa1 {[%emt 0:04:07]} f5 {[%emt 0:00:00]} 20. Nf3 {[%emt 0:01:14]} Ng6 {[%emt 0:00:00]} 21. Bd3 {[%emt 0:02:20]} Rf8 {[%emt 0:00:00]} 22. h4 {[%emt 0:01:59]} Rde8 {[%emt 0:00:00]} 23. Bb5 {[%emt 0:03:33]} Re4 {[%emt 0:00:00]} 24. Bd3 {[%emt 0:03:29]} Re6 {[%emt 0:00:00]} 25. Ng5 {[%emt 0:02:39]} Ref6 {[%emt 0:00:00]} 26. g3 {[%emt 0:00:35]} Ne5 {[%emt 0:00:00]} 27. Be2 {[%emt 0:00:26]} g6 {[%emt 0:00:00]} 28. Red1 {[%emt 0:03:27]} Rd6 {[%emt 0:00:00]} 29. Nf3 {[%emt 0:02:04]} Nf7 {[%emt 0:00:00]} 30. Rd2 {[%emt 0:02:23]} h6 {[%emt 0:00:00]} 31. Rad1 {[%emt 0:00:33]} Rfd8 {[%emt 0:00:00]} 32. b4 {[%emt 0:05:12]} Kg7 {[%emt 0:00:00]} 33. b5 {[%emt 0:03:04]} g5 {[%emt 0:00:00]} 34. a4 {[%emt 0:02:05]} d4 {[%emt 0:00:00]} 35. exd4 {[%emt 0:02:49]} Bxf3 {[%emt 0:00:00]} 36. Bxf3 {[%emt 0:00:13]} Rxd4 {[%emt 0:00:00]} 37. Rxd4 {[%emt 0:00:44]} Rxd4 {[%emt 0:00:00]} 38. Rxd4 {[%emt 0:01:11]} cxd4 {[%emt 0:00:00]} 39. hxg5 {[%emt 0:00:28]} hxg5 {[%emt 0:00:00]} 40. Bd5 {[%emt 0:00:24]} Ne5 {[%emt 0:00:00]} 41. f3 {[%emt 0:31:50]} Kf6 {[%emt 0:29:29]} 42. Kf2 {[%emt 0:02:41]} f4 {[%emt 0:00:56]} 43. g4 {[%emt 0:02:27]} Ke7 {[%emt 0:01:10]} 44. Ke2 {[%emt 0:07:15]} Kd6 {[%emt 0:00:27]} 45. Be4 {[%emt 0:00:06]} Kc5 {[%emt 0:00:27]} 46. Kd2 {[%emt 0:08:05]} Nc4+ {[%emt 0:01:38]} 47. Kc1 {[%emt 0:00:32]} Kb4 {[%emt 0:01:24]} 48. Bd5 {[%emt 0:00:56]} Ne3 {[%emt 0:00:18]} 49. Bc6 {[%emt 0:01:08]} Kc3 {[%emt 0:00:35]} 50. Be4 {[%emt 0:00:34]} Nc4 {[%emt 0:00:12]} 0-1